bitfinex-derivatives/quotes_BTCF0:USTF0_20250722
["timestamp","ask_amount","ask_price","bid_price","bid_amount"]
[1753151495438,1.16192991,117610.0,117600.0,1.05207371]
[1753151496342,1.16192991,117610.0,117600.0,1.02834371]
[1753151497231,0.8865898,117610.0,117600.0,1.29960371]
[1753151497437,1.17291991,117610.0,117600.0,1.10387371]
[1753151498032,1.17291991,117610.0,117600.0,0.38996371]
[1753151498242,1.17291991,117610.0,117600.0,0.97756371]
[1753151498639,0.8865898,117610.0,117600.0,1.32964371]
[1753151498841,1.17291991,117610.0,117600.0,1.00964371]
[1753151500645,1.16192991,117610.0,117600.0,1.00964371]
[1753151501447,1.16192991,117610.0,117600.0,0.83966281]
[1753151501634,1.16192991,117610.0,117600.0,1.00116855]
[1753151502444,1.16192991,117610.0,117600.0,0.97116855]
[1753151503047,1.17291991,117610.0,117600.0,0.97116855]
[1753151503247,0.8865898,117610.0,117600.0,0.97116855]
[1753151503446,1.17291991,117610.0,117600.0,0.97116855]
[1753151507149,1.17291991,117610.0,117600.0,0.97112855]
[1753151508548,1.17391991,117610.0,117600.0,0.97112855]
[1753151509358,1.17391991,117610.0,117600.0,0.10100435]
[1753151509559,1.17391991,117610.0,117600.0,0.07028435]
[1753151509752,1.17391991,117610.0,117600.0,0.65684435]
[1753151510056,1.17391991,117610.0,117600.0,0.06928435]
[1753151513661,0.4129042,117600.0,117590.0,0.03059261]
[1753151513960,2.04396442,117600.0,117590.0,0.03059261]
[1753151514461,2.05262569,117600.0,117590.0,0.03059261]
[1753151514663,2.04396442,117600.0,117590.0,0.03059261]
[1753151516560,2.04396442,117600.0,117590.0,0.10057937]
[1753151517163,2.04496442,117600.0,117590.0,0.10157937]
[1753151517462,2.04496442,117600.0,117590.0,0.07098676]
[1753151519067,1.4723042,117600.0,117590.0,0.43583797]
[1753151519264,1.17103431,117600.0,117590.0,0.48321797]
[1753151519455,1.17103431,117600.0,117590.0,0.85321797]
[1753151519760,1.17103431,117600.0,117590.0,0.48321797]
[1753151519960,0.8847042,117600.0,117590.0,0.48321797]
[1753151520153,1.17103431,117600.0,117590.0,0.48321797]
[1753151520558,1.17103431,117600.0,117590.0,0.84321797]
[1753151520759,0.8847042,117600.0,117590.0,0.76954808]
[1753151521168,0.8847042,117600.0,117590.0,0.48321797]
[1753151521566,0.8847042,117600.0,117590.0,0.84321797]
[1753151521771,0.8847042,117600.0,117590.0,0.48321797]
[1753151521969,0.8847042,117600.0,117590.0,1.07081797]
[1753151522965,1.17103431,117600.0,117590.0,1.07081797]
[1753151524462,1.17103431,117600.0,117590.0,1.00168797]
[1753151524662,1.17103431,117600.0,117590.0,0.83168937]
[1753151524864,1.17103431,117600.0,117590.0,1.00168797]
[1753151528367,0.8847042,117600.0,117590.0,1.00168797]
[1753151528569,1.00105011,117600.0,117590.0,1.02343797]
[1753151528766,0.90217011,117600.0,117590.0,1.07081797]
[1753151528972,0.61584,117600.0,117590.0,1.11670204]
[1753151529273,0.6674,117600.0,117590.0,1.44610943]
[1753151529476,0.71472,117600.0,117590.0,1.44610943]
[1753151529674,1.17103431,117600.0,117590.0,1.11667556]
[1753151531766,1.17103431,117600.0,117590.0,1.08610943]
[1753151531977,1.17103431,117600.0,117590.0,1.04022536]
[1753151533477,1.17103431,117600.0,117590.0,1.08610943]
[1753151533676,1.17103431,117600.0,117590.0,1.04022536]
[1753151534274,1.17103431,117600.0,117590.0,0.83167163]
[1753151535073,1.17103431,117600.0,117590.0,0.72194163]
[1753151535274,1.45736442,117600.0,117590.0,0.72194163]
[1753151535472,1.45736442,117600.0,117590.0,0.10156163]
[1753151536171,1.45736442,117600.0,117590.0,0.09392329]
[1753151536772,1.45736442,117600.0,117590.0,0.02493653]
[1753151537173,1.45736442,117600.0,117590.0,0.002]
[1753151538172,0.3850631,117580.0,117570.0,0.0535114]
[1753151538471,1.52534321,117580.0,117570.0,0.02293653]
[1753151539472,1.52534321,117580.0,117570.0,0.09147078]
[1753151540177,1.52534321,117580.0,117570.0,0.06853425]
[1753151540375,0.2143875,117570.0,117560.0,0.02293653]
[1753151540576,1.16455761,117570.0,117560.0,0.02293653]
[1753151542074,0.261932,117560.0,117550.0,0.69600327]
[1753151542279,1.18457211,117560.0,117550.0,0.93049653]
[1753151542579,1.18457211,117560.0,117550.0,0.67756]
[1753151542783,1.18457211,117560.0,117550.0,0.09]
[1753151543179,1.18557211,117560.0,117550.0,0.093]
[1753151543379,1.18557211,117560.0,117550.0,0.070949]
[1753151543778,1.18657211,117560.0,117550.0,0.068949]
[1753151545875,1.18657211,117560.0,117550.0,0.2390055]
[1753151546070,1.18657211,117560.0,117550.0,0.3161655]
[1753151547481,1.18757211,117560.0,117550.0,0.3161655]
[1753151549686,1.18757211,117560.0,117550.0,0.146109]
[1753151550280,0.901242,117560.0,117550.0,0.4450454]
[1753151550588,0.3704,117560.0,117550.0,0.73137551]
[1753151550786,0.3704,117560.0,117550.0,0.75431204]
[1753151551186,0.540442,117560.0,117550.0,0.75431204]
[1753151551887,0.3704,117560.0,117550.0,0.46798193]
[1753151552083,0.20895,117560.0,117550.0,0.46798193]
[1753151552288,0.20895,117560.0,117550.0,1.06431204]
[1753151553187,0.401342,117560.0,117550.0,1.06431204]
[1753151553777,0.2313,117560.0,117550.0,1.06431204]
[1753151554791,0.133,117560.0,117550.0,1.09488691]
[1753151554982,0.133,117560.0,117550.0,1.07195038]
[1753151555889,0.20895,117560.0,117550.0,1.65963038]
[1753151556387,0.20895,117560.0,117550.0,1.67698979]
[1753151556785,0.11076,117560.0,117550.0,2.80020986]
[1753151556990,0.0983,117580.0,117570.0,0.3437775]
[1753151557190,0.2083,117580.0,117570.0,1.21774761]
[1753151557489,0.2083,117580.0,117570.0,1.24060576]
[1753151558395,0.2133,117580.0,117570.0,1.24160576]
[1753151558690,0.2133,117580.0,117570.0,0.95527565]
[1753151558885,0.2153,117580.0,117570.0,0.95527565]
[1753151559087,0.22681,117580.0,117570.0,0.95527565]
[1753151559481,0.22681,117580.0,117570.0,0.98575319]
[1753151559681,0.22481,117580.0,117570.0,0.98575319]
[1753151559892,0.3898231,117580.0,117570.0,0.98475319]
[1753151560091,0.3898231,117580.0,117570.0,0.98575319]
[1753151560092,0.5184131,117580.0,117570.0,0.98575319]
[1753151561193,0.5184131,117580.0,117570.0,0.96289504]
[1753151562190,0.80474321,117580.0,117570.0,0.96289504]
[1753151562391,0.80474321,117580.0,117570.0,0.32968504]
[1753151562591,0.80474321,117580.0,117570.0,0.91728504]
[1753151565894,1.16554321,117580.0,117570.0,0.91728504]
[1753151566300,1.16554321,117580.0,117570.0,0.96061504]
[1753151569295,1.16554321,117580.0,117570.0,0.98350471]
[1753151571096,1.16554321,117580.0,117570.0,0.98350351]
[1753151572397,0.80474321,117580.0,117570.0,0.98350351]
[1753151572596,0.8792131,117580.0,117570.0,0.98350351]
[1753151572797,1.16554321,117580.0,117570.0,1.33061504]
[1753151573198,0.8792131,117580.0,117570.0,1.61694515]
[1753151573998,0.8792131,117580.0,117570.0,1.24694515]
[1753151574200,0.8792131,117580.0,117570.0,1.55694515]
[1753151574500,0.8792131,117580.0,117570.0,1.27061504]
[1753151574897,0.5184131,117580.0,117570.0,1.27061504]
[1753151575202,0.5184131,117580.0,117570.0,0.96061504]
[1753151575401,0.5184131,117580.0,117570.0,1.30061504]
[1753151575606,0.5184131,117580.0,117570.0,0.96061504]
[1753151575803,0.5184131,117580.0,117570.0,1.27061504]
[1753151576396,0.5184131,117580.0,117570.0,1.55694515]
[1753151576802,0.5184131,117580.0,117570.0,1.27061504]
[1753151577302,0.5184131,117580.0,117570.0,1.55694515]
[1753151577502,0.5184131,117580.0,117570.0,1.60282922]
[1753151578104,0.5184131,117580.0,117570.0,1.57235168]
[1753151578702,0.5184131,117580.0,117570.0,1.60289508]
[1753151578899,0.8792131,117580.0,117570.0,1.00656497]
[1753151579101,0.8792131,117580.0,117570.0,0.97602157]
[1753151579300,0.8792131,117580.0,117570.0,0.96068997]
[1753151580105,0.8792131,117580.0,117570.0,1.00657404]
[1753151580309,1.16554321,117580.0,117570.0,1.00657404]
[1753151580908,1.16554321,117580.0,117570.0,0.97602157]
[1753151581107,0.80474321,117580.0,117570.0,0.97602157]
[1753151581503,0.80474321,117580.0,117570.0,1.30602157]
[1753151581809,0.80474311,117580.0,117570.0,1.30602157]
[1753151582009,0.518413,117580.0,117570.0,1.59235168]
[1753151582210,0.45272,117590.0,117580.0,0.339933]
[1753151582405,0.45272,117590.0,117580.0,0.65683839]
[1753151582406,0.7427185,117590.0,117580.0,0.65683839]
[1753151582613,0.57272,117590.0,117580.0,1.00683839]
[1753151582805,0.7843885,117590.0,117580.0,1.00683839]
[1753151583005,0.8810385,117590.0,117580.0,0.65683839]
[1753151583209,0.8810385,117590.0,117580.0,0.37050828]
[1753151583405,0.8820385,117590.0,117580.0,0.37050828]
[1753151583604,0.8820385,117590.0,117580.0,0.37150828]
[1753151583810,0.8840385,117590.0,117580.0,0.37150828]
[1753151584111,0.8840385,117590.0,117580.0,0.76739235]
[1753151584311,0.8840385,117590.0,117580.0,0.78739235]
[1753151585607,0.8840385,117590.0,117580.0,0.41739235]
[1753151585912,0.8840385,117590.0,117580.0,0.38681707]
[1753151586512,0.5232385,117590.0,117580.0,0.38681707]
[1753151586711,0.5232385,117590.0,117580.0,0.71681707]
[1753151587723,0.5232385,117590.0,117580.0,0.70153625]
[1753151588414,0.5232385,117590.0,117580.0,0.39153625]
[1753151588714,0.5232385,117590.0,117580.0,0.73153625]
[1753151590116,0.35324,117590.0,117580.0,0.73153625]
[1753151590414,0.35324,117590.0,117580.0,1.01786636]
[1753151590713,0.21492,117590.0,117580.0,1.01786636]
[1753151591115,0.21492,117590.0,117580.0,1.67506636]
[1753151591715,0.21492,117590.0,117580.0,1.69034718]
[1753151594222,0.21492,117590.0,117580.0,1.72092939]
[1753151594517,0.32232,117590.0,117580.0,1.72092939]
[1753151595222,0.32232,117590.0,117580.0,1.43459928]
[1753151595523,0.32232,117590.0,117580.0,1.72092939]
[1753151596019,0.32232,117590.0,117580.0,1.69034718]
[1753151596221,0.32232,117590.0,117580.0,1.72092558]
[1753151596522,0.35321,117590.0,117580.0,1.72092558]
[1753151596722,0.35321,117590.0,117580.0,1.07379547]
[1753151596922,0.35321,117590.0,117580.0,1.31424151]
[1753151597730,0.35321,117590.0,117580.0,1.32954718]
[1753151599329,0.5232085,117590.0,117580.0,1.00113707]
[1753151599525,1.17033861,117590.0,117580.0,1.58845707]
[1753151600236,1.17033861,117590.0,117580.0,1.57315464]
[1753151600835,1.17033861,117590.0,117580.0,1.542573]
[1753151601027,1.17033861,117590.0,117580.0,0.827413]
[1753151601334,1.17033861,117590.0,117580.0,1.24061707]
[1753151602233,1.17033861,117590.0,117580.0,1.28798707]
[1753151602631,0.8840085,117590.0,117580.0,1.28798707]
[1753151602934,0.35321,117590.0,117580.0,1.55859718]
[1753151603132,0.35321,117590.0,117580.0,1.91939718]
[1753151603726,0.21492,117590.0,117580.0,1.91939718]
[1753151603936,0.21492,117590.0,117580.0,1.87351311]
[1753151604137,0.21492,117590.0,117580.0,1.93408249]
[1753151605335,0.21492,117590.0,117580.0,1.57328249]
[1753151605638,0.21492,117590.0,117580.0,1.93408249]
[1753151606025,0.21492,117590.0,117580.0,1.87351311]
[1753151606427,0.003,117590.0,117580.0,1.87351311]
[1753151606736,0.003,117590.0,117580.0,2.23048249]
[1753151608238,0.003,117590.0,117580.0,2.23048249]
[1753151611036,0.06988,117600.0,117590.0,0.3392684]
[1753151611236,0.18988,117600.0,117590.0,1.38225057]
[1753151611638,0.12,117600.0,117590.0,1.63279851]
[1753151612141,0.18988,117600.0,117590.0,1.63279851]
[1753151612343,0.19188,117600.0,117590.0,1.67864348]
[1753151612544,0.21271,117600.0,117590.0,1.67864348]
[1753151613744,0.21271,117600.0,117590.0,1.31784348]
[1753151613938,0.21471,117600.0,117590.0,1.31884348]
[1753151614141,0.21471,117600.0,117590.0,1.67964348]
[1753151614640,0.21471,117600.0,117590.0,1.31884348]
[1753151615547,0.21471,117600.0,117590.0,1.67964348]
[1753151616738,0.09471,117600.0,117590.0,1.67964348]
[1753151616944,0.004,117600.0,117590.0,1.67964348]
[1753151617139,0.6006353,117620.0,117610.0,0.1699697]
[1753151617344,0.34694,117620.0,117610.0,1.61621044]
[1753151617941,0.34694,117620.0,117610.0,1.69340904]
[1753151618142,0.21071,117620.0,117610.0,1.67048877]
[1753151618343,0.21071,117620.0,117610.0,2.03128877]
[1753151618546,0.21571,117620.0,117610.0,2.03228877]
[1753151620046,0.21571,117620.0,117610.0,2.04757338]
[1753151620248,0.21171,117620.0,117610.0,2.04857338]
[1753151620549,0.121,117620.0,117610.0,2.3620459]
[1753151621348,0.19088,117620.0,117610.0,2.3620459]
[1753151621549,0.21371,117620.0,117610.0,2.3620459]
[1753151622139,0.21171,117620.0,117610.0,2.3620459]
[1753151622448,0.121,117620.0,117610.0,2.3620459]
[1753151623453,0.19088,117620.0,117610.0,2.3620459]
[1753151624352,0.21225,117620.0,117610.0,2.3620459]
[1753151624552,0.21225,117620.0,117610.0,2.34497338]
[1753151625248,0.121,117620.0,117610.0,2.34497338]
[1753151625653,0.33550999,117640.0,117630.0,0.1699408]
[1753151625859,0.21411,117640.0,117630.0,1.812296]
[1753151626055,0.21411,117640.0,117630.0,1.83517367]
[1753151626358,0.21411,117640.0,117630.0,2.108696]
[1753151627052,0.21611,117640.0,117630.0,2.12503588]
[1753151627458,0.21611,117640.0,117630.0,2.15551797]
[1753151627648,0.21611,117640.0,117630.0,2.10205229]
[1753151628251,0.07663,117640.0,117630.0,2.10967275]
[1753151629159,0.4366164,117640.0,117630.0,1.52263275]
[1753151629358,0.5235064,117640.0,117630.0,1.49215091]
[1753151629653,0.19663,117640.0,117630.0,1.88836691]
[1753151629951,0.07663,117640.0,117630.0,2.24916691]
[1753151631459,0.004,117640.0,117630.0,2.27964875]
[1753151633258,0.004,117640.0,117630.0,2.24916691]
[1753151634260,0.004,117640.0,117630.0,2.27964875]
[1753151634758,0.07263,117650.0,117640.0,0.2336064]
[1753151634960,0.14269,117650.0,117640.0,1.50997201]
[1753151636059,0.14469,117650.0,117640.0,1.48713651]
[1753151636455,0.14669,117650.0,117640.0,1.48813651]
[1753151637354,0.14569,117650.0,117640.0,1.48813651]
[1753151637763,0.14569,117650.0,117640.0,1.51861835]
[1753151638159,0.07563,117650.0,117640.0,1.51861835]
[1753151639651,0.07363,117650.0,117640.0,1.52161835]
[1753151640256,0.07363,117650.0,117640.0,1.85379343]
[1753151640761,0.07363,117650.0,117640.0,1.56746332]
[1753151641164,0.07363,117650.0,117640.0,1.56946332]
[1753151641766,0.07363,117650.0,117640.0,1.85579343]
[1753151641767,0.001,117650.0,117640.0,1.85579343]
[1753151642059,0.07263,117660.0,117650.0,0.203112]
[1753151642269,0.07263,117660.0,117650.0,1.84184676]
[1753151642564,0.26269,117660.0,117650.0,1.60136162]
[1753151642862,0.26269,117660.0,117650.0,1.85724708]
[1753151643059,0.30411,117660.0,117650.0,0.98415697]
[1753151643265,0.34958,117660.0,117650.0,1.85573708]
[1753151643466,0.34958,117660.0,117650.0,1.56940697]
[1753151644167,0.34958,117660.0,117650.0,1.55400072]
[1753151644466,0.35058,117660.0,117650.0,1.81540211]
[1753151645268,0.35058,117660.0,117650.0,1.86124708]
[1753151646465,0.35058,117660.0,117650.0,1.57491697]
[1753151646664,0.35058,117660.0,117650.0,1.86124708]
[1753151646862,0.5204775,117660.0,117650.0,1.45309211]
[1753151647062,0.5204775,117660.0,117650.0,1.166762]
[1753151647266,0.35058,117660.0,117650.0,1.74949211]
[1753151648364,0.35058,117660.0,117650.0,1.79533708]
[1753151649457,0.35058,117660.0,117650.0,2.15613708]
[1753151649656,0.35058,117660.0,117650.0,2.15764708]
[1753151649858,0.26369,117660.0,117650.0,2.15764708]
[1753151655270,0.26369,117660.0,117650.0,2.11180211]
[1753151656872,0.001,117660.0,117650.0,2.11180211]
[1753151657167,1e-07,117660.0,117650.0,2.11180211]
[1753151657476,0.14012,117680.0,117670.0,0.2010431]
[1753151657770,0.14012,117680.0,117670.0,2.15094529]
[1753151657961,0.14012,117680.0,117670.0,2.12041646]
[1753151658677,0.07003,117680.0,117670.0,2.12041646]
[1753151659174,0.12045,117680.0,117670.0,2.12041646]
[1753151659473,0.14112,117680.0,117670.0,2.12041646]
[1753151659673,0.14112,117680.0,117670.0,2.18724977]
[1753151660376,0.001,117680.0,117670.0,2.18724977]
[1753151660565,0.07103,117680.0,117670.0,2.18724977]
[1753151661769,0.14112,117680.0,117670.0,2.14145652]
[1753151662273,0.27212,117680.0,117670.0,1.55577652]
[1753151662473,0.363,117680.0,117670.0,2.18771683]
[1753151662778,0.363,117680.0,117670.0,2.18871683]
[1753151662969,0.362,117680.0,117670.0,2.19367683]
[1753151663170,0.5328686,117680.0,117670.0,1.51365672]
[1753151663372,0.02067,117690.0,117680.0,0.3534186]
[1753151663674,0.45268,117720.0,117710.0,0.3061754]
[1753151663874,0.56268,117720.0,117710.0,0.90116841]
[1753151664175,0.56268,117720.0,117710.0,1.27116841]
[1753151664375,0.56268,117720.0,117710.0,1.27659852]
[1753151665473,0.63271,117720.0,117710.0,1.27659852]
[1753151665675,0.7038,117720.0,117710.0,0.99026841]
[1753151665978,0.7038,117720.0,117710.0,1.01315688]
[1753151666469,0.7038,117720.0,117710.0,1.04367484]
[1753151666668,0.7048,117720.0,117710.0,1.04567484]
[1753151667070,0.7048,117720.0,117710.0,1.67200495]
[1753151667272,0.7048,117720.0,117710.0,1.33200495]
[1753151667584,0.344,117720.0,117710.0,1.33200495]
[1753151667782,0.7048,117720.0,117710.0,1.27859852]
[1753151667983,0.7048,117720.0,117710.0,1.28859852]
[1753151668184,0.7048,117720.0,117710.0,1.28855852]
[1753151668481,0.7048,117720.0,117710.0,1.62855852]
[1753151668681,0.7048,117720.0,117710.0,1.34222841]
[1753151670783,0.7048,117720.0,117710.0,1.62855852]
[1753151671789,0.7048,117720.0,117710.0,1.34222841]
[1753151671990,0.7048,117720.0,117710.0,1.62855852]
[1753151672690,0.8746109,117720.0,117710.0,1.62855852]
[1753151672992,0.344,117720.0,117710.0,1.62855852]
[1753151673290,0.8746109,117720.0,117710.0,1.62855852]
[1753151674293,0.7048,117720.0,117710.0,1.62855852]
[1753151675886,0.112,117720.0,117710.0,2.30864699]
[1753151676085,0.002,117720.0,117710.0,2.30864699]
[1753151677292,0.002,117720.0,117710.0,3.48336699]
[1753151677688,0.002,117720.0,117710.0,3.46047852]
[1753151678085,0.002,117720.0,117710.0,2.87391852]
[1753151678282,0.002,117720.0,117710.0,3.46035852]
[1753151680998,0.002,117720.0,117710.0,3.63026252]
[1753151681199,0.002,117720.0,117710.0,3.65315099]
[1753151683700,0.002,117720.0,117710.0,3.48324699]
[1753151686597,0.002,117720.0,117710.0,2.89680699]
[1753151686789,0.002,117720.0,117710.0,3.51368495]
[1753151686790,0.07115,117720.0,117710.0,3.51368495]
[1753151686989,0.002,117720.0,117710.0,3.51368495]
[1753151687198,0.002,117720.0,117710.0,3.49079648]
[1753151687500,0.002,117720.0,117710.0,3.51363786]
[1753151687793,0.002,117720.0,117710.0,3.46027852]
[1753151690199,0.002,117720.0,117710.0,3.5208479]
[1753151690495,0.3608,117750.0,117730.0,0.04119]
[1753151690699,0.70124,117750.0,117740.0,1.28888453]
[1753151691001,0.71193,117750.0,117740.0,1.63888453]
[1753151691900,0.35613,117750.0,117740.0,1.93628453]
[1753151692100,0.35613,117750.0,117740.0,1.96675578]
[1753151692603,0.36013,117750.0,117740.0,1.96675578]
[1753151693201,0.35913,117750.0,117740.0,1.94390197]
[1753151693802,0.35913,117750.0,117740.0,2.01205417]
[1753151694194,0.35913,117750.0,117740.0,2.02728905]
[1753151697404,0.35913,117750.0,117740.0,1.73088905]
[1753151697702,0.35913,117750.0,117740.0,1.76136192]
[1753151698104,0.21831,117750.0,117740.0,1.76136192]
[1753151698306,0.21831,117750.0,117740.0,2.12216192]
[1753151698910,0.26828,117750.0,117740.0,2.12216192]
[1753151699306,0.26828,117750.0,117740.0,1.76136192]
[1753151700404,0.26828,117750.0,117740.0,2.12216192]
[1753151700706,0.26828,117750.0,117740.0,1.47503181]
[1753151700908,0.26828,117750.0,117740.0,1.76136192]
[1753151701105,0.34844,117750.0,117740.0,1.76136192]
[1753151701304,0.35913,117750.0,117740.0,1.76136192]
[1753151701499,0.35913,117750.0,117740.0,2.12216192]
[1753151702207,0.31227,117750.0,117740.0,2.12216192]
[1753151703407,0.31227,117750.0,117740.0,2.41856192]
[1753151704205,0.31227,117750.0,117740.0,2.38808905]
[1753151704405,0.31227,117750.0,117740.0,2.41856541]
[1753151704708,0.008,117750.0,117740.0,2.38808905]
[1753151705805,0.008,117750.0,117740.0,2.10175894]
[1753151706005,0.008,117750.0,117740.0,2.38808905]
[1753151707203,0.07715,117750.0,117740.0,2.38808905]
[1753151707406,0.18715,117750.0,117740.0,2.38808905]
[1753151709006,0.20831,117750.0,117740.0,2.38808905]
[1753151710309,0.20831,117750.0,117740.0,2.34238441]
[1753151711308,0.20831,117750.0,117740.0,1.98158441]
[1753151711499,0.20831,117750.0,117740.0,2.34238441]
[1753151713805,0.30227,117750.0,117740.0,1.75606441]
[1753151714005,0.70993,117750.0,117740.0,1.65316178]
[1753151714311,0.70993,117750.0,117740.0,1.65308178]
[1753151714510,0.70993,117750.0,117740.0,1.6835942]
[1753151715009,1.16602771,117750.0,117740.0,1.39779672]
[1753151715208,1.16602771,117750.0,117740.0,1.10139672]
[1753151715705,0.8796976,117750.0,117740.0,1.10139672]
[1753151715906,0.70993,117750.0,117740.0,1.10139672]
[1753151716508,1.16602771,117750.0,117740.0,1.10139672]
[1753151716809,1.16602771,117750.0,117740.0,1.1471542]
[1753151717412,1.16602771,117750.0,117740.0,0.5609942]
[1753151717613,1.16602771,117750.0,117740.0,1.1472342]
[1753151717810,1.16602771,117750.0,117740.0,0.40195946]
[1753151718012,1.33588371,117750.0,117740.0,0.84802946]
[1753151718213,1.33588371,117750.0,117740.0,0.8251343]
[1753151723820,1.33588371,117750.0,117740.0,0.0691522]
[1753151724022,1.33588371,117750.0,117740.0,0.6553922]
[1753151724623,1.33588371,117750.0,117740.0,0.8251743]
[1753151726923,1.33588371,117750.0,117740.0,0.6553922]
[1753151727230,1.33588371,117750.0,117740.0,0.8251742]
[1753151727824,1.33588371,117750.0,117740.0,0.6553922]
[1753151728631,1.16602771,117750.0,117740.0,0.6553922]
[1753151729231,1.33588371,117750.0,117740.0,0.6553922]
[1753151729432,1.25261371,117750.0,117740.0,0.6554322]
[1753151734436,1.25261371,117750.0,117740.0,0.0691522]
[1753151734938,0.3178064,117730.0,117720.0,0.30918726]
[1753151735137,1.07493651,117730.0,117720.0,1.13301526]
[1753151736138,1.07793651,117730.0,117720.0,1.13301526]
[1753151736433,1.07793651,117730.0,117720.0,1.2010102]
[1753151737037,1.07893651,117730.0,117720.0,1.2010102]
[1753151737638,0.7926064,117730.0,117720.0,1.2010102]
[1753151737840,1.07893651,117730.0,117720.0,1.23152262]
[1753151739542,1.07893651,117730.0,117720.0,1.2010102]
[1753151741145,1.12426651,117730.0,117720.0,1.2471102]
[1753151744449,1.48506651,117730.0,117720.0,0.9210102]
[1753151745844,2.07138651,117730.0,117720.0,0.0908901]
[1753151746044,2.07138651,117730.0,117720.0,0.06799494]
[1753151746251,2.07138651,117730.0,117720.0,0.02289516]
[1753151747244,2.24127451,117730.0,117720.0,0.02289516]
[1753151748445,0.3987806,117720.0,117710.0,0.03051242]
[1753151748645,0.41742403,117710.0,117700.0,0.07630229]
[1753151748852,1.76087414,117710.0,117700.0,0.03054481]
[1753151750048,1.76087414,117710.0,117700.0,0.09743313]
[1753151750254,1.76087414,117710.0,117700.0,0.06688832]
[1753151750548,0.2775695,117700.0,117690.0,0.91892928]
[1753151750753,1.15593961,117700.0,117690.0,1.02531928]
[1753151751942,1.15593961,117700.0,117690.0,0.9795618]
[1753151752648,0.1799539,117690.0,117680.0,0.38884402]
[1753151752952,1.15595401,117690.0,117680.0,1.24563402]
[1753151753345,1.15595401,117690.0,117680.0,1.29316402]
[1753151753746,1.15695401,117690.0,117680.0,1.29316402]
[1753151754141,1.15895401,117690.0,117680.0,1.29316402]
[1753151754346,1.15895401,117690.0,117680.0,1.24740654]
[1753151754547,1.74535401,117690.0,117680.0,0.06706619]
[1753151754754,1.75371627,117690.0,117680.0,0.1698683]
[1753151754949,0.2560483,117680.0,117670.0,0.98296888]
[1753151755154,1.16596841,117680.0,117670.0,1.24296888]
[1753151755354,1.16596841,117680.0,117670.0,0.61409908]
[1753151755554,1.16596841,117680.0,117670.0,0.2019516]
[1753151755755,0.3988528,117670.0,117660.0,1.02542378]
[1753151755956,1.16598291,117670.0,117660.0,1.37542378]
[1753151756344,1.75234291,117670.0,117660.0,0.47906378]
[1753151756858,1.75234291,117670.0,117660.0,0.48006378]
[1753151757058,1.75234291,117670.0,117660.0,0.48106378]
[1753151758051,1.75234291,117670.0,117660.0,0.37467378]
[1753151758252,1.75234291,117670.0,117660.0,0.3998131]
[1753151758648,1.75234291,117670.0,117660.0,0.3598131]
[1753151758850,1.75234291,117670.0,117660.0,0.31405562]
[1753151759158,1.75234291,117670.0,117660.0,0.23950142]
[1753151759354,1.75234291,117670.0,117660.0,0.23951052]
[1753151759564,1.75234291,117670.0,117660.0,0.27159052]
[1753151760163,1.16598291,117670.0,117660.0,0.27159052]
[1753151760462,1.16598261,117670.0,117660.0,0.46022052]
[1753151760664,1.58258011,117670.0,117660.0,0.46022052]
[1753151761055,0.70977,117670.0,117660.0,0.46022052]
[1753151761255,0.12,117670.0,117660.0,0.79230811]
[1753151761762,0.12,117670.0,117660.0,1.15310811]
[1753151761960,0.19247,117670.0,117660.0,0.79230811]
[1753151762261,0.21402,117670.0,117660.0,0.79230811]
[1753151763162,0.21402,117670.0,117660.0,1.13230811]
[1753151763461,0.34897,117670.0,117660.0,0.505978]
[1753151763658,0.8796526,117670.0,117660.0,0.505978]
[1753151763854,0.8796526,117670.0,117660.0,0.46022052]
[1753151764354,1.16598271,117670.0,117660.0,0.37798052]
[1753151766057,1.16598271,117670.0,117660.0,0.44321052]
[1753151766464,0.8796526,117670.0,117660.0,0.44321052]
[1753151766663,1.16598271,117670.0,117660.0,0.44321052]
[1753151767366,0.99610011,117670.0,117660.0,0.44321052]
[1753151767565,1.16598261,117670.0,117660.0,0.44321052]
[1753151769970,0.8796525,117670.0,117660.0,0.44321052]
[1753151770261,0.8796525,117670.0,117660.0,0.45986052]
[1753151770262,0.70977,117670.0,117660.0,0.45986052]
[1753151770869,0.8796525,117670.0,117660.0,1.04710052]
[1753151771067,0.70977,117670.0,117660.0,1.04710052]
[1753151771268,0.99610011,117670.0,117660.0,1.04710052]
[1753151771456,0.70977,117670.0,117660.0,1.04710052]
[1753151773763,0.70977,117670.0,117660.0,1.71343063]
[1753151773968,0.70977,117670.0,117660.0,1.33343063]
[1753151775275,0.70977,117670.0,117660.0,1.04710052]
[1753151775969,0.8796525,117670.0,117660.0,1.04710052]
[1753151778177,0.70977,117670.0,117660.0,1.04710052]
[1753151778670,0.70977,117670.0,117660.0,1.0775969]
[1753151779171,0.8796525,117670.0,117660.0,1.0775969]
[1753151781168,0.70977,117670.0,117660.0,1.0775969]
[1753151781873,0.70977,117670.0,117660.0,1.12335438]
[1753151783071,0.8796525,117670.0,117660.0,1.12335438]
[1753151783662,0.70977,117670.0,117660.0,1.432858]
[1753151783962,0.58492,117670.0,117660.0,1.71918811]
[1753151784661,0.63432,117670.0,117660.0,1.432858]
[1753151784867,0.63432,117670.0,117660.0,1.71918811]
[1753151785869,0.63432,117670.0,117660.0,1.432858]
[1753151786069,0.63432,117670.0,117660.0,1.71918811]
[1753151786373,0.55327,117670.0,117660.0,1.71918811]
[1753151786873,0.57312,117670.0,117660.0,1.71918811]
[1753151787375,0.62252,117670.0,117660.0,1.71918811]
[1753151788266,0.26172,117670.0,117660.0,1.71918811]
[1753151788663,0.26172,117670.0,117660.0,1.67343063]
[1753151789769,0.30915,117670.0,117660.0,1.67343063]
[1753151789968,0.34129,117670.0,117660.0,1.67343063]
[1753151790176,0.35133,117670.0,117660.0,1.67343063]
[1753151790677,0.35133,117670.0,117660.0,1.7192729]
[1753151790869,0.35133,117670.0,117660.0,1.67343063]
[1753151791275,0.35133,117670.0,117660.0,1.38710052]
[1753151795277,0.35133,117670.0,117660.0,1.67343063]
[1753151796878,0.35133,117670.0,117660.0,1.73400001]
[1753151797177,0.35133,117670.0,117660.0,1.67343063]
[1753151797777,0.35133,117670.0,117660.0,1.38710052]
[1753151799779,0.35133,117670.0,117660.0,1.04710052]
[1753151800279,0.5212125,117670.0,117660.0,1.04710052]
[1753151800477,1.16834261,117670.0,117660.0,0.37798052]
[1753151800681,1.16834261,117670.0,117660.0,0.96482052]
[1753151800883,1.16834261,117670.0,117660.0,1.0107328]
[1753151801074,1.16834261,117670.0,117660.0,0.9632028]
[1753151801272,1.16834261,117670.0,117660.0,1.0118128]
[1753151802682,1.16834261,117670.0,117660.0,1.0920828]